fUST/lending_fUST_20240921
["ID","MTS","AMOUNT","RATE_DAILY","PERIOD"]
[338652677,1726849840977,-151.0,0.00015966,2]
[338652678,1726849840986,-151.0,0.00015966,2]
[338652679,1726849840996,-151.0,0.00015966,2]
[338652680,1726849841005,-151.0,0.00015966,2]
[338652681,1726849841015,-254.966097,0.00015966,2]
[338652682,1726849841024,-151.0,0.00015966,2]
[338652683,1726849841035,-151.0,0.00015966,2]
[338652684,1726849841045,-151.0,0.00015966,2]
[338652685,1726849841055,-433.282447,0.00015966,2]
[338652686,1726849841065,-433.282447,0.00015966,2]
[338652687,1726849841074,-151.0,0.00015966,2]
[338652688,1726849841083,-151.0,0.00015966,2]
[338652689,1726849841093,-254.20645201,0.00015973,2]
[338652690,1726849841103,-500.0,0.00015973,2]
[338652691,1726849841113,-499.0,0.00015973,2]
[338652692,1726849841122,-500.0,0.00015973,2]
[338652693,1726849841132,-210.90288632,0.00015973,2]
[338652694,1726849841142,-500.0,0.00015973,2]
[338652695,1726849841151,-500.0,0.00015973,2]
[338652696,1726849841162,-500.0,0.00015973,2]
[338652697,1726849841172,-500.0,0.00015973,2]
[338652698,1726849841181,-360.1957471,0.00015973,2]
[338652699,1726849841191,-500.0,0.00015973,2]
[338652700,1726849841200,-642.7981583,0.00015974,2]
[338652701,1726849841212,-500.0,0.00015974,2]
[338652702,1726849841222,-579.96068453,0.00015974,2]
[338652703,1726849841231,-500.0,0.00015974,2]
[338652704,1726849841240,-1000.0,0.00015974,2]
[338652705,1726849841250,-432.90604146,0.00015974,2]
[338652706,1726849841261,-500.0,0.00015974,2]
[338652707,1726849841271,-274.96901099,0.00015974,2]
[338652708,1726849841280,-500.7574108,0.00015974,2]
[338652709,1726849841290,-500.30099658,0.00015974,2]
[338652710,1726849841300,-500.0,0.00015974,2]
[338652711,1726849841309,-500.0,0.00015974,2]
[338652712,1726849841319,-500.0,0.00015974,2]
[338652713,1726849841328,-502.54875055,0.00015974,2]
[338652714,1726849841337,-500.0,0.00015974,2]
[338652715,1726849841346,-500.0,0.00015974,2]
[338652716,1726849841355,-500.0,0.00015975,2]
[338652717,1726849841364,-599.25,0.00015975,2]
[338652718,1726849841374,-500.0,0.00015975,2]
[338652719,1726849841385,-921.45,0.00015975,2]
[338652720,1726849841396,-500.0,0.00015975,2]
[338652721,1726849841405,-511.27,0.00015975,2]
[338652722,1726849841415,-500.0,0.00015975,2]
[338652723,1726849841425,-500.0,0.00015975,2]
[338652724,1726849841435,-500.0,0.00015975,2]
[338652725,1726849841446,-500.0,0.00015975,2]
[338652726,1726849841456,-500.0,0.00015975,2]
[338652727,1726849841467,-500.0,0.00015975,2]
[338652728,1726849841477,-500.0,0.00015975,2]
[338652729,1726849841486,-730.95,0.00015975,2]
[338652730,1726849841496,-500.0,0.00015975,2]
[338652731,1726849841506,-500.0,0.00015975,2]
[338652732,1726849841517,-528.81,0.00015975,2]
[338652733,1726849841528,-500.0,0.00015975,2]
[338652734,1726849841539,-500.0,0.00015975,2]
[338652735,1726849841549,-626.82,0.00015975,2]
[338652736,1726849841560,-500.0,0.00015975,2]
[338652737,1726849841570,-500.0,0.00015975,2]
[338652738,1726849841579,-500.0,0.00015975,2]
[338652739,1726849841588,-500.0,0.00015975,2]
[338652740,1726849841597,-500.0,0.00015975,2]
[338652741,1726849841607,-500.0,0.00015975,2]
[338652742,1726849841616,-500.0,0.00015975,2]
[338652743,1726849841626,-500.0,0.00015975,2]
[338652744,1726849841635,-500.0,0.00015975,2]
[338652745,1726849841644,-500.0,0.00015975,2]
[338652746,1726849841653,-500.0,0.00015975,2]
[338652747,1726849841663,-1000.17,0.00015975,2]
[338652748,1726849841672,-176.12,0.00015975,2]
[338652749,1726849841682,-616.53,0.00015975,2]
[338652750,1726849841692,-544.65,0.00015975,2]
[338652751,1726849841849,-500.0,0.00015975,2]
[338652752,1726849841862,-500.0,0.00015975,2]
[338652753,1726849841872,-500.0,0.00015975,2]
[338652754,1726849841882,-500.0,0.00015975,2]
[338652755,1726849841892,-500.0,0.00015975,2]
[338652756,1726849841904,-500.0,0.00015975,2]
[338652757,1726849841915,-500.0,0.00015975,2]
[338652758,1726849841924,-500.0,0.00015975,2]
[338652759,1726849841935,-500.0,0.00015975,2]
[338652760,1726849841947,-500.28816432,0.00015975,2]
[338652761,1726849841959,-746.45,0.00015975,2]
[338652762,1726849841970,-500.0,0.00015975,2]
[338652763,1726849841979,-500.0,0.00015975,2]
[338652764,1726849841990,-500.0,0.00015975,2]
[338652765,1726849842002,-500.0,0.00015975,2]
[338652766,1726849842012,-500.0,0.00015975,2]
[338652767,1726849842023,-500.0,0.00015975,2]
[338652768,1726849842034,-500.0,0.00015975,2]
[338652769,1726849842044,-510.27,0.00015975,2]
[338652770,1726849842057,-500.0,0.00015975,2]
[338652771,1726849842067,-500.0,0.00015975,2]
[338652772,1726849842078,-500.0,0.00015975,2]
[338652773,1726849842088,-500.0,0.00015975,2]
[338652774,1726849842098,-500.0,0.00015975,2]
[338652775,1726849842108,-500.0,0.00015975,2]
[338652776,1726849842119,-500.0,0.00015975,2]
[338652777,1726849842129,-500.0,0.00015975,2]
[338652778,1726849842140,-500.0,0.00015975,2]
[338652779,1726849842151,-500.0,0.00015975,2]
[338652780,1726849842161,-500.0,0.00015975,2]
[338652781,1726849842171,-303.04,0.00015975,2]
[338652782,1726849842181,-500.0,0.00015975,2]
[338652783,1726849842191,-500.0,0.00015975,2]
[338652784,1726849842200,-500.0,0.00015975,2]
[338652785,1726849842209,-500.0,0.00015975,2]
[338652786,1726849842219,-500.0,0.00015975,2]
[338652787,1726849842229,-500.0,0.00015975,2]
[338652788,1726849842240,-500.0,0.00015975,2]
[338652789,1726849842251,-500.0,0.00015975,2]
[338652790,1726849842262,-805.83,0.00015975,2]
[338652791,1726849842271,-500.0,0.00015975,2]
[338652792,1726849842281,-506.10607374,0.00015975,2]
[338652793,1726849842290,-487.93919768,0.00015975,2]
[338652794,1726849842299,-500.0,0.00015975,2]
[338652795,1726849842310,-500.0,0.00015975,2]
[338652796,1726849842319,-500.0,0.00015975,2]
[338652797,1726849842329,-500.0,0.00015975,2]
[338652798,1726849842338,-500.0,0.00015975,2]
[338652799,1726849842348,-500.0,0.00015975,2]
[338652800,1726849842357,-500.0,0.00015975,2]
[338652801,1726849842366,-500.0,0.00015975,2]
[338652802,1726849842376,-500.0,0.00015975,2]
[338652803,1726849842387,-500.0,0.00015975,2]
[338652804,1726849842397,-500.0,0.00015975,2]
[338652805,1726849842407,-681.44,0.00015975,2]
[338652806,1726849842417,-500.0,0.00015975,2]
[338652807,1726849842427,-500.0,0.00015975,2]
[338652808,1726849842436,-500.0,0.00015975,2]
[338652809,1726849842445,-500.0,0.00015975,2]
[338652810,1726849842455,-923.76,0.00015975,2]
[338652811,1726849842465,-500.0,0.00015975,2]
[338652812,1726849842474,-500.0,0.00015975,2]
[338652813,1726849842483,-799.02,0.00015975,2]
[338652814,1726849842493,-500.0,0.00015975,2]
[338652815,1726849842502,-500.0,0.00015975,2]
[338652816,1726849842511,-500.0,0.00015975,2]
[338652817,1726849842521,-500.0,0.00015975,2]
[338652818,1726849842531,-500.0,0.00015975,2]
[338652819,1726849842540,-500.0,0.00015975,2]
[338652820,1726849842549,-500.0,0.00015975,2]
[338652821,1726849842559,-500.0,0.00015975,2]
[338652822,1726849842568,-500.0,0.00015975,2]
[338652823,1726849842577,-500.0,0.00015975,2]
[338652824,1726849842587,-500.0,0.00015975,2]
[338652825,1726849842596,-500.0,0.00015975,2]
[338652826,1726849842605,-500.0,0.00015975,2]
[338652827,1726849842615,-500.0,0.00015975,2]
[338652828,1726849842626,-513.32,0.00015975,2]
[338652829,1726849842637,-500.0,0.00015975,2]
[338652830,1726849842648,-594.08,0.00015975,2]
[338652831,1726849842660,-567.2668096,0.00015975,2]
[338652832,1726849842678,-500.0,0.00015975,2]
[338652833,1726849842689,-500.0,0.00015975,2]
[338652834,1726849842700,-500.0,0.00015975,2]
[338652835,1726849842710,-500.0,0.00015975,2]
[338652836,1726849842721,-500.0,0.00015975,2]
[338652837,1726849842732,-500.0,0.00015975,2]
[338652838,1726849842743,-500.0,0.00015975,2]
[338652839,1726849842755,-516.67,0.00015975,2]
[338652840,1726849842765,-547.26,0.00015975,2]
[338652841,1726849842774,-501.04881337,0.00015975,2]
[338652842,1726849842783,-623.56,0.00015975,2]
[338652843,1726849842792,-500.0,0.00015975,2]
[338652844,1726849842803,-500.0,0.00015975,2]
[338652845,1726849842813,-500.0,0.00015975,2]
[338652846,1726849842823,-500.0,0.00015975,2]
[338652847,1726849842834,-500.0,0.00015975,2]
[338652848,1726849842846,-500.0,0.00015975,2]
[338652849,1726849842857,-500.0,0.00015975,2]
[338652850,1726849842867,-151.0,0.00015975,2]
[338652851,1726849842877,-151.0,0.00015975,2]
[338652852,1726849842886,-500.0,0.00015975,2]
[338652853,1726849842896,-500.0,0.00015975,2]
[338652854,1726849842905,-500.0,0.00015975,2]
[338652856,1726849842924,-500.0,0.00015975,2]
[338652858,1726849842933,-500.0,0.00015975,2]
[338652860,1726849842942,-500.0,0.00015975,2]
[338652861,1726849842951,-500.0,0.00015975,2]
[338652864,1726849842961,-608.01,0.00015975,2]
[338652865,1726849842971,-151.0,0.00015975,2]
[338652866,1726849842982,-151.0,0.00015975,2]
[338652867,1726849842991,-500.0,0.00015975,2]
[338652868,1726849843002,-510.88,0.00015975,2]
[338652869,1726849843012,-500.0,0.00015975,2]
[338652870,1726849843022,-151.0,0.00015975,2]
[338652871,1726849843032,-500.0,0.00015975,2]
[338652872,1726849843042,-500.0,0.00015975,2]
[338652873,1726849843053,-151.0,0.00015975,2]
[338652874,1726849843064,-500.0,0.00015975,2]
[338652875,1726849843074,-770.65,0.00015975,2]
[338652876,1726849843083,-761.01,0.00015975,2]
[338652877,1726849843092,-500.0,0.00015975,2]
[338652878,1726849843102,-500.39417536,0.00015975,2]
[338652879,1726849843113,-500.0,0.00015975,2]
[338652881,1726849843123,-434.97198507,0.00015975,2]
[338652883,1726849843136,-500.0,0.00015975,2]
[338652884,1726849843147,-413.65601812,0.00015975,2]
[338652885,1726849843158,-500.0,0.00015975,2]
[338652886,1726849843168,-500.53693253,0.00015975,2]
[338652887,1726849843178,-433.282447,0.00015975,2]
[338652888,1726849843188,-577.53,0.00015975,2]
[338652889,1726849843198,-433.282447,0.00015975,2]
[338652890,1726849843210,-500.0,0.00015975,2]
[338652891,1726849843219,-500.0,0.00015975,2]
[338652892,1726849843229,-500.0,0.00015975,2]
[338652893,1726849843239,-500.0,0.00015975,2]
[338652894,1726849843251,-500.0,0.00015975,2]
[338652895,1726849843261,-500.0,0.00015975,2]
[338652896,1726849843271,-500.0,0.00015976,2]
[338652897,1726849843280,-500.0,0.00015976,2]
[338652898,1726849843290,-500.0,0.00015976,2]
[338652899,1726849843300,-652.36,0.00015976,2]
[338652900,1726849843311,-1229.28,0.00015976,2]
[338652901,1726849843321,-1229.28,0.00015976,2]
[338652902,1726849843331,-1229.28,0.00015976,2]
[338652903,1726849843343,-1229.28,0.00015976,2]
[338652904,1726849843354,-500.0,0.00015976,2]
[338652905,1726849843363,-859.59,0.00015976,2]
[338652906,1726849843372,-500.0,0.00015976,2]
[338652907,1726849843382,-500.0,0.00015976,2]
[338652908,1726849843393,-500.0,0.00015976,2]
[338652909,1726849843403,-500.0,0.00015976,2]
[338652910,1726849843415,-500.0,0.00015976,2]
[338652911,1726849843424,-500.0,0.00015976,2]
[338652912,1726849843434,-500.0,0.00015976,2]
[338652913,1726849843443,-1417.57,0.00015976,2]
[338652914,1726849843453,-500.0,0.00015976,2]
[338652916,1726849843464,-500.0,0.00015976,2]
[338652917,1726849843474,-500.0,0.00015976,2]
[338652918,1726849843484,-500.0,0.00015976,2]
[338652919,1726849843493,-1130.89,0.00015976,2]
[338652920,1726849843505,-500.0,0.00015976,2]
[338652921,1726849843516,-306.24798982,0.00015976,2]
[338652922,1726849843526,-500.0,0.00015976,2]
[338652923,1726849843536,-500.0,0.00015976,2]
[338652924,1726849843546,-287.28,0.00015976,2]
[338652925,1726849843556,-500.0,0.00015976,2]
[338652926,1726849843565,-500.0,0.00015976,2]
[338652927,1726849843575,-500.0,0.00015976,2]
[338652928,1726849843585,-500.0,0.00015976,2]
[338652929,1726849843594,-500.0,0.00015976,2]
[338652930,1726849843604,-314.22,0.00015976,2]
[338652931,1726849843613,-151.0,0.00015976,2]
[338652932,1726849843622,-151.0,0.00015976,2]
[338652933,1726849843631,-151.0,0.00015976,2]
[338652934,1726849843641,-151.0,0.00015976,2]
[338652935,1726849843650,-151.0,0.00015976,2]
[338652936,1726849843661,-151.0,0.00015976,2]
[338652937,1726849843671,-151.0,0.00015976,2]
[338652938,1726849843680,-151.0,0.00015976,2]
[338652939,1726849843689,-1229.28,0.00015988,2]
[338652940,1726849843698,-500.0,0.00015988,2]
[338652941,1726849843707,-6526.30647483,0.00015995,2]
[338652942,1726849843717,-153.0,0.00016,2]
[338652943,1726849843726,-153.0,0.00016,2]
[338652944,1726849843738,-153.0,0.00016,2]
[338652945,1726849843748,-153.0,0.00016,2]
[338652946,1726849843758,-150.112233,0.00016,2]
[338652947,1726849843767,-150.112233,0.00016,2]
[338652948,1726849843776,-150.112233,0.00016,2]
[338652949,1726849843785,-150.112233,0.00016,2]
[338652950,1726849843795,-255737.41149,0.00016042,2]
[338652951,1726849843807,-151.0,0.00016043,2]
[338652952,1726849843818,-151.0,0.00016043,2]
[338652953,1726849843828,-151.0,0.00016043,2]
[338652954,1726849843838,-151.0,0.00016043,2]
[338652955,1726849843848,-150.112233,0.000161,2]
[338652956,1726849843858,-150.112233,0.000161,2]
[338652957,1726849843867,-150.112233,0.000161,2]
[338652958,1726849843880,-53115.4139946,0.00016131,2]
[338652959,1726849843892,-11982.9143858,0.00016131,2]
[338652960,1726849843901,-151.0,0.00016141,2]
[338652961,1726849843914,-151.0,0.00016141,2]
[338652962,1726849843923,-151.0,0.00016141,2]
[338652963,1726849843932,-151.0,0.00016141,2]
[338652964,1726849843942,-151.0,0.00016141,2]
[338652965,1726849843952,-279.960979,0.00016141,2]
[338652966,1726849843962,-154.742121,0.00016141,2]
[338652967,1726849843971,-151.0,0.00016141,2]
[338652968,1726849843980,-151.0,0.00016141,2]
[338652969,1726849843989,-151.0,0.00016141,2]
[338652970,1726849843999,-151.0,0.00016141,2]
[338652971,1726849844008,-151.0,0.00016141,2]
[338652972,1726849844017,-151.0,0.00016141,2]
[338652973,1726849844026,-151.0,0.00016141,2]
[338652974,1726849844036,-433.282447,0.00016141,2]
[338652975,1726849844045,-433.282447,0.00016141,2]
[338652976,1726849844054,-682.23,0.00016147,2]
[338652977,1726849844063,-611.56852345,0.00016147,2]
[338652978,1726849844071,-500.0,0.00016147,2]
[338652979,1726849844080,-574.66,0.00016147,2]
[338652980,1726849844089,-500.0,0.00016147,2]
[338652981,1726849844098,-54541.23,0.00016147,2]
[338652982,1726849844107,-2235.03,0.00016148,2]
[338652983,1726849844116,-500.0,0.00016148,2]
[338652984,1726849844125,-500.0,0.00016148,2]
[338652985,1726849844135,-500.0,0.00016148,2]
[338652986,1726849844145,-500.0,0.00016148,2]
[338652987,1726849844154,-500.0,0.00016148,2]
[338652988,1726849844165,-622.83701619,0.00016148,2]
[338652989,1726849844174,-500.0,0.00016148,2]
[338652990,1726849844183,-780.94,0.00016148,2]
[338652991,1726849844192,-500.0,0.00016148,2]
[338652992,1726849844202,-500.0,0.00016148,2]
[338652993,1726849844211,-500.0,0.00016148,2]
[338652994,1726849844221,-500.0,0.00016148,2]
[338652995,1726849844231,-500.0,0.00016148,2]
[338652996,1726849844240,-500.0,0.00016148,2]
[338652997,1726849844250,-500.0,0.00016148,2]
[338652998,1726849844260,-500.0,0.0001615,2]
[338652999,1726849844269,-923.76,0.0001615,2]
[338653000,1726849844278,-623.56,0.0001615,2]
[338653001,1726849844288,-150.0,0.000162,2]
[338653002,1726849844297,-150.112233,0.000162,2]
[338653003,1726849844307,-150.112233,0.000162,2]
[338653004,1726849844317,-150.112233,0.000162,2]
[338653005,1726849844326,-35410.2759964,0.00016208,2]
[338653006,1726849844336,-7988.6095905,0.00016208,2]
[338653007,1726849844345,-160.0,0.00016217,2]
[338653008,1726849844355,-184.96654,0.00016218,2]
[338653009,1726849844364,-151.0,0.00016218,2]
[338653010,1726849844373,-151.0,0.00016218,2]
[338653011,1726849844383,-151.0,0.00016218,2]
[338653012,1726849844395,-151.0,0.00016218,2]
[338653013,1726849844405,-151.0,0.00016218,2]
[338653014,1726849844415,-151.0,0.00016218,2]
[338653015,1726849844424,-151.0,0.00016218,2]
[338653016,1726849844434,-151.0,0.00016218,2]
[338653017,1726849844443,-151.0,0.00016218,2]
[338653018,1726849844452,-151.0,0.00016218,2]
[338653019,1726849844463,-154.317256,0.00016218,2]
[338653020,1726849844472,-433.282447,0.00016218,2]
[338653021,1726849844481,-433.282447,0.00016218,2]
[338653022,1726849844490,-152.663539,0.0001623,2]
[338653023,1726849844500,-152.663539,0.0001623,2]
[338653024,1726849844509,-151.0,0.0001623,2]
[338653025,1726849844519,-151.0,0.0001623,2]
[338653026,1726849844528,-151.0,0.0001623,2]
[338653027,1726849844538,-151.0,0.0001623,2]
[338653028,1726849844548,-230.612043,0.0001623,2]
[338653029,1726849844560,-230.612043,0.0001623,2]
[338653030,1726849844569,-151.0,0.0001623,2]
[338653031,1726849844578,-151.0,0.0001623,2]
[338653032,1726849844588,-151.0,0.0001623,2]
[338653033,1726849844598,-8043.55,0.00016237,2]
[338653034,1726849844608,-500.0,0.00016237,2]
[338653035,1726849844617,-500.0,0.00016237,2]
[338653036,1726849844626,-500.0,0.00016237,2]
[338653037,1726849844635,-500.0,0.00016237,2]
[338653038,1726849844644,-151.0,0.00016237,2]
[338653039,1726849844653,-500.0,0.00016237,2]
[338653040,1726849844663,-151.0,0.00016237,2]
[338653041,1726849844672,-500.0,0.00016237,2]
[338653042,1726849844681,-1254.49,0.00016237,2]
[338653043,1726849844690,-309.73,0.00016237,2]
[338653044,1726849844699,-500.0,0.00016237,2]
[338653045,1726849844708,-479.90076632,0.00016237,2]
[338653046,1726849844717,-433.282447,0.00016237,2]
[338653047,1726849844726,-433.282447,0.00016237,2]
[338653048,1726849844736,-500.0,0.00016237,2]
[338653049,1726849844745,-500.0,0.00016238,2]
[338653050,1726849844754,-500.0,0.00016238,2]
[338653051,1726849844764,-500.0,0.00016238,2]
[338653052,1726849844773,-500.0,0.00016238,2]
[338653053,1726849844781,-152.663539,0.00016239,2]
[338653054,1726849844790,-152.663539,0.00016239,2]
[338653055,1726849844800,-468.98,0.00016239,2]
[338653056,1726849844810,-500.0,0.00016239,2]
[338653057,1726849844819,-500.0,0.00016239,2]
[338653058,1726849844828,-500.0,0.00016239,2]
[338653059,1726849844838,-2013.89,0.00016239,2]
[338653060,1726849844846,-500.0,0.00016239,2]
[338653061,1726849844856,-500.0,0.00016239,2]
[338653062,1726849844865,-586.27,0.00016239,2]
[338653063,1726849844875,-500.0,0.00016239,2]
[338653064,1726849844884,-500.0,0.00016239,2]
[338653065,1726849844893,-500.0,0.00016239,2]
[338653066,1726849844902,-923.76,0.00016239,2]
[338653067,1726849844912,-923.76,0.00016239,2]
[338653068,1726849844921,-923.76,0.00016239,2]
[338653069,1726849844930,-500.0,0.00016239,2]
[338653070,1726849844939,-923.76,0.00016239,2]
[338653071,1726849844949,-923.76,0.00016239,2]
[338653072,1726849844958,-923.76,0.00016239,2]
[338653073,1726849844967,-923.76,0.00016239,2]
[338653074,1726849844977,-500.0,0.00016239,2]
[338653075,1726849844986,-669.37,0.00016239,2]
[338653076,1726849844997,-711.78,0.00016239,2]
[338653077,1726849845006,-500.0,0.00016239,2]
[338653078,1726849845015,-433.8,0.00016239,2]
[338653079,1726849845024,-500.0,0.00016239,2]
[338653080,1726849845034,-503.59,0.00016239,2]
[338653081,1726849845043,-500.0,0.00016239,2]
[338653082,1726849845052,-500.0,0.00016239,2]
[338653083,1726849845061,-1048.35,0.00016239,2]
[338653084,1726849845070,-500.0,0.00016239,2]
[338653085,1726849845079,-500.0,0.00016239,2]
[338653086,1726849845089,-707.82,0.00016239,2]
[338653087,1726849845098,-713.32,0.00016239,2]
[338653088,1726849845107,-623.56,0.00016239,2]
[338653089,1726849845116,-623.56,0.00016239,2]
[338653090,1726849845125,-623.56,0.00016239,2]
[338653091,1726849845134,-623.56,0.00016239,2]
[338653092,1726849845144,-623.56,0.00016239,2]
[338653093,1726849845153,-623.56,0.00016239,2]
[338653094,1726849845163,-623.56,0.00016239,2]
[338653095,1726849845172,-158.27,0.00016239,2]
[338653096,1726849845182,-222.41976252,0.00016239,2]
[338653097,1726849845191,-512.42,0.00016239,2]
[338653098,1726849845200,-1533.92,0.00016239,2]
[338653099,1726849845209,-207.74179419,0.00016239,2]
[338653100,1726849845218,-391.25814725,0.00016239,2]
[338653101,1726849845227,-835.97,0.00016239,2]
[338653102,1726849845237,-719.41,0.00016239,2]
[338653103,1726849845246,-500.0,0.00016239,2]
[338653104,1726849845255,-500.0,0.00016239,2]
[338653105,1726849845264,-592.83,0.00016239,2]
[338653106,1726849845274,-599.81651463,0.00016239,2]
[338653107,1726849845283,-500.0,0.00016239,2]
[338653108,1726849845292,-500.0,0.00016239,2]
[338653109,1726849845301,-500.0,0.00016239,2]
[338653110,1726849845311,-526.55,0.00016239,2]
[338653111,1726849845320,-500.0,0.00016239,2]
[338653112,1726849845330,-259.36,0.00016239,2]
[338653113,1726849845340,-500.0,0.00016239,2]
[338653114,1726849845488,-500.0,0.00016239,2]
[338653115,1726849845497,-500.0,0.00016239,2]
[338653116,1726849845507,-500.0,0.00016239,2]
[338653117,1726849845516,-500.0,0.00016239,2]
[338653118,1726849845525,-500.0,0.00016239,2]
[338653119,1726849845535,-500.0,0.00016239,2]
[338653120,1726849845543,-500.0,0.00016239,2]
[338653121,1726849845552,-500.0,0.00016239,2]
[338653122,1726849845561,-500.0,0.00016239,2]
[338653123,1726849845571,-500.0,0.00016239,2]
[338653124,1726849845580,-1229.28,0.0001624,2]
[338653125,1726849845589,-500.0,0.0001624,2]
[338653126,1726849845598,-923.76,0.00016242,2]
[338653127,1726849845607,-923.76,0.00016242,2]
[338653128,1726849845617,-923.76,0.00016242,2]
[338653129,1726849845626,-923.76,0.00016242,2]
[338653130,1726849845635,-923.76,0.00016242,2]
[338653131,1726849845644,-923.76,0.00016242,2]
[338653132,1726849845653,-923.76,0.00016242,2]
[338653133,1726849845663,-923.76,0.00016242,2]
[338653134,1726849845672,-623.56,0.00016242,2]
[338653135,1726849845682,-623.56,0.00016242,2]
[338653136,1726849845691,-623.56,0.00016242,2]
[338653137,1726849845700,-623.56,0.00016242,2]
[338653138,1726849845710,-623.56,0.00016242,2]
[338653139,1726849845719,-623.56,0.00016242,2]
[338653140,1726849845730,-623.56,0.00016242,2]
[338653141,1726849845739,-623.56,0.00016242,2]
[338653142,1726849845748,-151.0,0.00016243,2]
[338653144,1726849845757,-151.0,0.00016243,2]
[338653146,1726849845766,-230.612043,0.00016243,2]
[338653148,1726849845776,-230.612043,0.00016243,2]
[338653150,1726849845785,-923.76,0.00016243,2]
[338653151,1726849845795,-923.76,0.00016243,2]
[338653153,1726849845804,-923.76,0.00016243,2]
[338653155,1726849845813,-923.76,0.00016243,2]
[338653157,1726849845823,-923.76,0.00016243,2]
[338653159,1726849845832,-923.76,0.00016243,2]
[338653161,1726849845841,-923.8220289,0.00016243,2]
[338653164,1726849845851,-277.475254,0.00016243,2]
[338653165,1726849845860,-151.0,0.00016243,2]
[338653168,1726849845870,-623.56,0.00016243,2]
[338653169,1726849845879,-623.56,0.00016243,2]
[338653172,1726849845888,-623.56,0.00016243,2]
[338653174,1726849845897,-623.56,0.00016243,2]
[338653175,1726849845907,-623.56,0.00016243,2]
[338653177,1726849845918,-623.56,0.00016243,2]
[338653178,1726849845935,-623.77576354,0.00016243,2]
[338653179,1726849845944,-151.0,0.00016243,2]
[338653180,1726849845954,-1000.0,0.00016243,2]
[338653181,1726849845963,-1000.0,0.00016243,2]
[338653182,1726849845972,-1000.0,0.00016243,2]
[338653184,1726849845981,-1000.0,0.00016243,2]
[338653185,1726849845991,-1000.0,0.00016243,2]
[338653186,1726849846000,-1000.0,0.00016243,2]
[338653187,1726849846010,-1000.0,0.00016243,2]
[338653188,1726849846019,-1000.0,0.00016243,2]
[338653189,1726849846030,-1000.0,0.00016243,2]
[338653190,1726849846039,-1000.0,0.00016243,2]
[338653192,1726849846048,-1000.0,0.00016243,2]
[338653194,1726849846057,-1000.0,0.00016243,2]
[338653196,1726849846067,-1000.0,0.00016243,2]
[338653198,1726849846076,-1000.0,0.00016243,2]
[338653200,1726849846085,-1000.0,0.00016243,2]
[338653202,1726849846095,-151.0,0.00016243,2]
[338653203,1726849846104,-151.0,0.00016248,2]
[338653205,1726849846114,-500.0,0.00016248,2]
[338653207,1726849846123,-158.05926,0.00016248,2]
[338653208,1726849846134,-249.033141,0.00016248,2]
[338653209,1726849846144,-500.0,0.00016248,2]
[338653210,1726849846155,-151.0,0.00016248,2]